bitfinex/quotes_ETHUSD_20240707
["timestamp","ask_amount","ask_price","bid_price","bid_amount"]
[1720317697111,2.55703589,3060.5,3060.4,3.26754]
[1720317697693,0.44449762,3060.7,3060.4,3.26754]
[1720317697892,2.55716142,3060.6,3060.4,3.26754]
[1720317698092,2.55716142,3060.5,3060.4,3.26754]
[1720317698293,2.55716142,3060.5,3060.1,3.26782]
[1720317698294,2.85732732,3060.5,3060.1,3.26782]
[1720317698593,8.56316142,3060.4,3060.1,3.26782]
[1720317698929,2.55716142,3060.3,3060.2,3.26776]
[1720317699790,2.55716142,3060.3,3060.1,3.26782]
[1720317699791,2.6227707,3060.3,3060.1,3.26782]
[1720317700123,2.55716142,3060.2,3060.1,3.26782]
[1720317700986,2.55732085,3060.2,3060.1,3.26782]
[1720317701213,2.55732085,3060.2,3059.9,3.268]
[1720317701533,0.06560928,3060.3,3060.1,3.26784]
[1720317703120,6.07160928,3060.4,3060.2,3.26775]
[1720317703512,2.55730305,3060.3,3060.2,3.26775]
[1720317704285,6.006,3060.4,3060.2,3.26775]
[1720317704530,2.55720761,3060.3,3060.2,3.26775]
[1720317704825,2.55728728,3060.3,3060.2,3.26775]
[1720317705927,2.55729773,3060.3,3060.2,3.26775]
[1720317706245,2.62290701,3060.3,3060.2,3.26775]
[1720317706397,3.5158143,3060.3,3060.0,3.26797]
[1720317706602,2.62295295,3060.2,3059.8,6.53627]
[1720317706841,2.55734367,3060.1,3059.8,6.53627]
[1720317707157,2.62295295,3060.0,3059.8,3.26811]
[1720317707297,2.55734367,3059.9,3059.8,3.26811]
[1720317707499,1.19729752,3059.9,3059.8,3.26811]
[1720317708036,2.08468824,3059.9,3059.8,3.26811]
[1720317708215,3.51061542,3059.9,3059.8,3.26811]
[1720317708716,3.51061542,3059.9,3059.8,3.30659441]
[1720317709941,2.55761542,3059.9,3059.8,3.30659441]
[1720317710668,1.13168824,3059.9,3059.8,3.30659441]
[1720317710852,1.13167693,3059.9,3059.8,3.30659441]
[1720317711354,2.55760162,3059.9,3059.8,3.30659441]
[1720317711928,1.13167693,3059.9,3059.8,3.30659441]
[1720317712356,2.55762016,3059.9,3059.8,3.30659441]
[1720317714158,1.13168807,3059.9,3059.8,3.30659441]
[1720317714667,1.13167908,3059.9,3059.8,3.30659441]
[1720317715372,1.13167908,3059.9,3059.8,6.57477441]
[1720317715573,0.12259127,3060.2,3060.0,3.26791]
[1720317715726,1.13159898,3060.1,3060.0,3.26791]
[1720317716231,1.13159898,3060.1,3060.0,3.30650632]
[1720317716232,2.55741232,3060.1,3060.0,3.30650632]
[1720317716436,1.13159898,3060.1,3060.0,3.30650632]
[1720317717461,1.13159582,3060.1,3060.0,3.30650632]
[1720317718954,2.55740783,3060.1,3060.0,3.30650632]
[1720317719472,2.55740761,3060.1,3060.0,3.30650632]
[1720317719859,2.55740424,3060.1,3060.0,3.30650632]
[1720317720059,1.13159582,3060.1,3060.0,3.30650632]
[1720317720268,2.5574251,3060.1,3060.0,3.30650632]
[1720317720440,2.85961397,3060.1,3060.0,3.30650632]
[1720317720680,2.85971555,3060.1,3060.0,3.30650632]
[1720317721665,2.85971555,3060.1,3060.0,0.03859632]
[1720317721870,2.85971555,3060.1,3059.8,3.2681]
[1720317722080,2.55752668,3060.0,3059.9,3.26808]
[1720317722387,2.55752668,3060.0,3059.9,3.30668362]
[1720317722592,1.13164897,3060.0,3059.9,6.57476362]
[1720317722754,1.13164897,3060.1,3060.0,3.26797]
[1720317722962,2.55745749,3060.1,3060.0,3.26797]
[1720317723150,2.55740759,3060.1,3060.0,3.30655955]
[1720317723652,0.12259127,3060.2,3060.1,3.26786]
[1720317723885,0.05698199,3060.2,3060.1,3.26786]
[1720317724074,2.61432728,3060.2,3060.1,3.3064287]
[1720317724954,2.67993656,3060.2,3060.1,3.3064287]
[1720317725586,8.62032728,3060.2,3060.1,3.3064287]
[1720317726388,6.06298199,3060.2,3060.1,3.3064287]
[1720317726570,8.62038945,3060.2,3060.1,3.3064287]
[1720317727389,10.4775028,3060.2,3060.1,3.3064287]
[1720317729603,7.92009534,3060.2,3060.1,3.3064287]
[1720317729894,10.4776136,3060.2,3060.1,3.3064287]
[1720317731306,10.4776136,3060.2,3060.1,0.0385687]
[1720317731680,10.4776136,3060.2,3060.1,0.03853029]
[1720317732004,10.4776136,3060.2,3060.0,3.26796]
[1720317732178,3.51051826,3060.1,3060.0,3.26796]
[1720317733115,3.51047531,3060.1,3060.0,3.26796]
[1720317733276,0.953,3060.1,3060.0,3.26796]
[1720317733479,3.51047491,3060.1,3060.0,3.26796]
[1720317736204,1.01860928,3060.1,3060.0,3.26796]
[1720317736536,3.57616816,3060.1,3060.0,3.26796]
[1720317736905,3.51055888,3060.1,3060.0,3.26796]
[1720317737800,2.55755888,3060.1,3060.0,3.26796]
[1720317738001,2.55755888,3060.1,3060.0,8.93013]
[1720317738201,1.13166322,3060.1,3060.0,12.1981]
[1720317738403,6.006,3060.2,3060.1,6.53572]
[1720317738818,6.006,3060.2,3060.1,6.57424803]
[1720317739654,6.006,3060.2,3060.1,9.84210803]
[1720317739842,6.006,3060.2,3060.1,6.57424803]
[1720317740148,7.13743168,3060.2,3060.1,6.57424803]
[1720317740439,8.56304844,3060.2,3060.1,6.57424803]
[1720317741928,6.006,3060.2,3060.1,6.57424803]
[1720317742916,8.56298486,3060.2,3060.1,6.57424803]
[1720317743246,7.43159282,3060.2,3060.1,6.57424803]
[1720317743459,6.006,3060.2,3060.1,6.57424803]
[1720317743809,7.4315736,3060.2,3060.1,6.57424803]
[1720317744563,6.006,3060.2,3060.1,9.84210803]
[1720317745045,3.26178593,3060.7,3060.6,8.92886]
[1720317745357,7.43,3061.2,3061.1,6.53358]
[1720317745552,2.55639657,3061.2,3061.1,6.53358]
[1720317745726,2.55639657,3061.2,3061.1,6.57171661]
[1720317745936,6.006,3061.3,3061.2,3.26669]
[1720317746134,8.56238951,3061.3,3061.2,3.26669]
[1720317746335,8.56238951,3061.3,3061.2,3.30475382]
[1720317746535,8.56238951,3061.3,3061.2,6.57144382]
[1720317747436,6.006,3061.3,3061.2,6.57144382]
[1720317748136,7.13707236,3061.3,3061.2,6.57144382]
[1720317748338,7.13709793,3061.3,3061.2,6.57144382]
[1720317748660,6.006,3061.3,3061.2,6.57144382]
[1720317763287,6.006,3061.3,3061.2,12.29723382]
[1720317769688,0.05696195,3061.6,3061.5,6.53274]
[1720317769904,1.18789444,3061.6,3061.5,9.79911]
[1720317770212,0.05696195,3061.6,3061.5,9.83667101]
[1720317770419,6.006,3062.0,3061.9,6.53188]
[1720317770620,7.1368012,3062.0,3061.9,6.56933964]
[1720317770853,6.006,3062.0,3061.9,6.56933964]
[1720317771204,7.13678462,3062.0,3061.9,6.56933964]
[1720317771710,6.006,3062.0,3061.9,6.56933964]
[1720317775110,6.006,3062.0,3061.9,9.83527964]
[1720317780473,0.06560928,3062.5,3062.4,3.26541]
[1720317780678,1.13069398,3062.5,3062.4,3.26541]
[1720317780887,1.13069398,3062.5,3062.4,3.30262109]
[1720317781066,8.382,3062.6,3062.5,3.2653]
[1720317781270,9.51269688,3062.6,3062.5,3.2653]
[1720317781486,8.382,3062.6,3062.5,3.30249028]
[1720317781697,9.51270065,3062.6,3062.5,3.30249028]
[1720317783259,10.69403071,3062.6,3062.5,3.30249028]
[1720317784288,10.69405174,3062.6,3062.5,3.30249028]
[1720317785088,16.70005174,3062.6,3062.5,3.30249028]
[1720317785685,16.70005174,3062.6,3062.5,0.03719028]
[1720317785980,16.70005174,3062.6,3062.3,3.26551]
[1720317786154,2.08272168,3062.5,3062.4,3.26541]
[1720317786359,2.08272168,3062.5,3062.4,3.30256919]
[1720317787595,2.08270664,3062.5,3062.4,3.30256919]
[1720317787757,1.13070664,3062.5,3062.4,3.30256919]
[1720317790193,4.49608658,3062.5,3062.4,0.03715919]
[1720317790394,4.49608658,3062.5,3061.5,3.26633]
[1720317790395,3.42996336,3062.5,3061.5,3.26633]
[1720317790550,3.42996336,3062.5,3061.7,3.26607]
[1720317790551,2.4909,3062.3,3061.7,3.26607]
[1720317790756,3.4429,3061.8,3061.7,3.26607]
[1720317790979,10.57984237,3061.8,3061.7,3.26607]
[1720317791196,9.4489,3061.8,3061.7,3.26607]
[1720317791382,10.57985877,3061.8,3061.7,3.26607]
[1720317791747,7.13695877,3061.8,3061.7,3.26607]
[1720317792489,7.13691876,3061.8,3061.7,3.26607]
[1720317792688,8.08891876,3061.8,3061.7,3.26607]
[1720317793695,7.13691876,3061.8,3061.7,6.53222]
[1720317793987,6.006,3061.8,3061.7,6.53222]
[1720317794450,0.952,3062.3,3062.1,3.26566]
[1720317794651,1.13082514,3062.2,3062.1,3.26566]
[1720317795665,2.55562689,3062.2,3062.1,3.26566]
[1720317795859,2.55562689,3062.2,3062.1,6.53139]
[1720317796060,6.006,3062.5,3062.4,3.26541]
[1720317796296,7.13669808,3062.5,3062.4,3.26541]
[1720317797264,7.13670939,3062.5,3062.4,3.26541]
[1720317798101,2.4909,3062.4,3062.1,3.26565]
[1720317798304,0.952,3062.2,3062.1,6.53128]
[1720317798597,2.14831867,3062.2,3062.1,3.26563]
[1720317798772,2.08270939,3062.2,3062.1,3.30154823]
[1720317800382,3.97145426,3062.2,3062.1,0.03591823]
[1720317800586,2.84081542,3062.2,3061.9,6.53176]
[1720317800867,2.55582409,3062.1,3062.0,3.30174582]
[1720317801056,2.55574516,3062.1,3062.0,3.30174582]
[1720317801254,1.13086069,3062.1,3062.0,3.30174582]
[1720317801450,2.55574281,3062.1,3062.0,3.30174582]
[1720317801676,2.55576521,3062.1,3062.0,3.30174582]
[1720317802378,2.89751896,3062.1,3062.0,3.30174582]
[1720317802651,2.8974233,3062.1,3062.0,3.30174582]
[1720317802851,2.55577996,3062.1,3062.0,3.30174582]
[1720317803700,2.55578671,3062.2,3062.0,3.30174582]
[1720317803884,2.55580921,3062.1,3062.0,3.30174582]
[1720317804066,2.55580921,3062.1,3062.0,0.03594582]
[1720317804266,3.16675298,3062.1,3061.8,3.266]
[1720317804469,2.55580921,3062.0,3061.9,0.03596664]
[1720317805496,2.55580921,3062.0,3061.9,3.30190664]
[1720317806208,2.55580921,3062.0,3061.9,0.03596664]
[1720317806421,2.55580921,3062.0,3061.6,3.26622]
[1720317806619,2.62141849,3061.9,3061.7,0.0360083]
[1720317806914,8.56180921,3061.8,3061.7,0.0360083]
[1720317807121,8.56209908,3061.8,3061.7,0.0360083]
[1720317810328,6.006,3061.8,3061.7,0.0360083]
[1720317810530,8.56216319,3061.8,3061.7,0.0360083]
[1720317810732,6.006,3061.8,3061.7,0.0360083]
[1720317810940,8.5621864,3061.8,3061.7,0.0360083]
[1720317812035,9.47904217,3061.8,3061.7,0.0360083]
[1720317812426,9.47904217,3061.8,3061.4,3.26644]
[1720317812623,2.62178992,3061.7,3061.5,0.0329062]
[1720317812823,2.55618064,3061.6,3061.4,3.26647]
[1720317813025,2.62178992,3061.5,3061.4,3.26647]
[1720317813236,2.55618064,3061.5,3061.4,3.26647]
[1720317813743,1.13109933,3061.5,3061.4,3.26647]
[1720317814032,1.13109933,3061.5,3061.4,3.29939928]
[1720317815711,1.13109933,3061.5,3061.4,6.56586928]
[1720317815929,6.006,3061.8,3061.5,3.26637]
[1720317816129,1.13098125,3061.7,3061.6,6.53252]
[1720317816330,6.006,3061.8,3061.7,6.5323]
[1720317816686,6.006,3061.8,3061.7,8.96187357]
[1720317817152,2.44,3062.2,3061.7,8.96187357]
[1720317817153,2.44,3062.2,3062.1,3.26573]
[1720317817338,2.44,3062.2,3062.1,6.53146]
[1720317817541,2.44,3062.2,3062.1,6.56418933]
[1720317818226,2.44,3062.2,3062.1,8.96088933]
[1720317818435,6.006,3062.5,3062.4,3.26541]
[1720317818628,6.006,3062.5,3062.4,3.29807235]
[1720317819140,7.13668032,3062.5,3062.4,3.29807235]
[1720317819479,7.13668032,3062.5,3062.4,6.56348235]
[1720317819646,6.006,3062.5,3062.4,12.82889235]
[1720317819847,11.0,3063.2,3063.0,3.26477]
[1720317820181,1.13048679,3063.1,3063.0,3.26477]
[1720317821435,3.57,3063.2,3063.1,3.26466]
[1720317821773,4.70046318,3063.2,3063.1,3.26466]
[1720317821975,4.7004701,3063.2,3063.1,3.26466]
[1720317822555,1.1304701,3063.2,3063.1,6.52932]
[1720317823076,1.1304701,3063.2,3062.7,2.3967]
[1720317823077,6.006,3063.3,3063.2,6.5291]
[1720317823237,7.13637571,3063.3,3063.2,6.5291]
[1720317823444,6.006,3063.3,3063.2,6.5291]
[1720317824084,7.13639434,3063.3,3063.2,6.5291]
[1720317824787,7.13639684,3063.3,3063.2,6.5291]
[1720317825667,7.13639684,3063.3,3063.2,3.26455]
[1720317825668,7.13642506,3063.3,3063.2,3.26455]
[1720317826599,6.006,3063.3,3063.2,3.26455]
[1720317826798,7.13643258,3063.3,3063.2,3.26455]
[1720317827159,6.006,3063.3,3063.2,3.26455]
[1720317828878,6.006,3063.3,3063.2,3.29553428]
[1720317830509,6.006,3063.3,3063.2,6.56008428]
[1720317834110,6.957,3063.3,3063.2,3.29553428]
[1720317836384,7.6527,3063.3,3063.2,0.03098428]
[1720317836787,7.99433736,3063.3,3063.0,3.26477]
[1720317836987,0.951,3063.1,3063.0,3.26477]
[1720317837389,0.951,3063.1,3062.8,3.2649]
[1720317837592,0.951,3062.9,3062.8,3.2649]
[1720317837916,0.951,3062.9,3062.7,3.26507]
[1720317838085,0.951,3062.9,3062.6,3.26509]
[1720317838292,0.951,3062.9,3062.7,3.26508]
[1720317839212,0.06560928,3062.8,3062.6,3.26509]
[1720317839414,0.951,3062.7,3062.6,3.26509]
[1720317839989,0.06560928,3063.1,3063.0,3.26477]
[1720317840314,2.1471675,3063.1,3063.0,3.26477]
[1720317840509,3.24848075,3063.1,3062.8,3.26491]
[1720317840711,1.16692253,3063.1,3062.8,3.26491]
[1720317840915,0.951,3062.9,3062.8,3.26491]
[1720317843615,2.0815808,3062.9,3062.8,3.26491]
[1720317843775,0.951,3062.9,3062.8,3.29568205]
[1720317844115,2.0815808,3062.9,3062.8,3.29568205]
[1720317844626,2.0815808,3062.9,3062.8,6.56066205]
[1720317845079,2.07896919,3062.9,3062.8,6.56066205]
[1720317846701,0.951,3062.9,3062.8,6.56066205]
[1720317848224,0.951,3062.9,3062.8,3.29568205]
[1720317848798,2.8977726,3063.0,3062.8,3.29568205]
[1720317849111,0.951,3062.9,3062.8,3.29568205]
[1720317852425,0.951,3062.9,3062.8,0.03077205]
[1720317852602,1.39492561,3062.9,3062.8,0.03077205]
[1720317853015,1.39492561,3062.9,3062.5,3.26524]
[1720317853218,0.951,3062.6,3062.5,3.26524]
[1720317854222,2.83216332,3063.0,3062.7,3.26503]
[1720317854426,0.951,3062.8,3062.7,3.26503]
[1720317855292,2.08157649,3062.8,3062.7,3.26503]
[1720317856627,2.08161997,3062.8,3062.7,3.26503]
[1720317858702,2.08161997,3062.8,3062.7,3.2958815]
[1720317860032,2.08163501,3062.8,3062.7,3.2958815]
[1720317860196,2.08163505,3062.8,3062.7,3.2958815]
[1720317860736,2.13856613,3062.8,3062.7,3.2958815]
[1720317861445,2.13856641,3062.8,3062.7,3.2958815]
[1720317862814,2.13856641,3062.8,3062.7,0.0308515]
[1720317863014,2.64220031,3062.8,3062.5,3.2652]
[1720317863214,0.951,3062.6,3062.5,3.2652]
[1720317863413,2.08166718,3062.6,3062.5,3.2652]
[1720317863738,8.08766718,3062.6,3062.4,3.2654]
[1720317863942,1.19627646,3062.5,3062.4,3.2654]
[1720317866450,1.19636709,3062.5,3062.4,3.2654]
[1720317868254,2.04587413,3062.5,3062.2,3.26558]
[1720317868548,0.951,3062.3,3062.2,3.26558]
[1720317868749,2.08175781,3062.3,3062.2,3.26558]
[1720317869724,0.951,3062.3,3062.2,3.26558]
[1720317870164,1.01660928,3062.5,3062.3,3.26548]
[1720317870463,1.13075105,3062.4,3062.3,3.26548]
[1720317873072,1.01660928,3062.5,3062.3,3.26548]
[1720317873257,1.13076828,3062.4,3062.3,3.26548]
[1720317873780,2.55553651,3062.4,3062.3,3.29654559]
[1720317874856,3.79483142,3062.4,3062.3,0.03106559]
[1720317875179,5.36019073,3062.4,3062.1,3.26572]
[1720317875359,0.951,3062.2,3062.1,3.26572]
[1720317875677,3.57214579,3062.2,3062.1,3.26572]
[1720317876271,3.57238724,3062.2,3062.1,3.26572]
[1720317877251,3.57238724,3062.2,3061.9,3.26588]
[1720317877441,0.951,3062.0,3061.9,3.26588]
[1720317877777,3.50677796,3062.0,3061.9,3.26588]
[1720317879473,3.50675859,3062.0,3061.9,3.26588]
[1720317879670,3.50677665,3062.0,3061.9,3.26588]
[1720317880000,0.951,3062.0,3061.9,3.26588]
[1720317880138,2.375902,3062.0,3061.9,3.26588]
[1720317880471,3.5067766,3062.0,3061.9,3.26588]
[1720317882987,0.951,3062.0,3061.9,3.26588]
[1720317883134,2.08189425,3062.0,3061.9,3.26588]
[1720317883340,3.506821,3062.0,3061.9,3.26588]
[1720317885678,3.57243028,3062.0,3061.9,3.26588]
[1720317886295,1.01660928,3062.0,3061.9,3.26588]
[1720317886452,2.08190814,3062.0,3061.9,3.26588]
[1720317886649,3.5068524,3062.0,3061.9,3.26588]
[1720317888906,3.5068524,3062.0,3061.9,3.297259]
[1720317889601,0.951,3062.0,3061.9,3.297259]
[1720317889764,2.3759132,3062.0,3061.9,3.297259]
[1720317889964,0.951,3062.0,3061.9,3.297259]
[1720317890174,2.37590056,3062.0,3061.9,3.297259]
[1720317890383,3.50677402,3062.0,3061.9,3.297259]
[1720317890987,3.50682693,3062.0,3061.9,3.297259]
[1720317892865,0.951,3062.0,3061.9,3.297259]
[1720317893064,3.50681714,3062.0,3061.9,3.297259]
[1720317894090,3.50681714,3062.0,3061.9,6.563199]
[1720317894310,1.13089254,3062.0,3061.9,8.852099]
[1720317896123,1.13089254,3062.0,3061.9,6.563199]
[1720317896289,0.951,3062.2,3062.1,6.53146]
[1720317896601,2.3758529,3062.2,3062.1,6.56278833]
[1720317896893,3.85735738,3062.2,3062.1,3.29705833]
[1720317899469,3.85743448,3062.2,3062.1,3.29705833]
[1720317899786,1.36727813,3062.2,3062.1,0.03132833]
[1720317900116,3.92307746,3062.2,3062.1,0.03132833]
[1720317900293,3.92307746,3062.2,3062.0,6.53157]
[1720317900480,1.36727813,3062.2,3062.1,0.03131252]
[1720317900680,11.4945886,3062.2,3062.1,0.03131252]
[1720317900879,10.61977498,3062.2,3062.1,0.03131252]
[1720317901150,12.04481028,3062.2,3061.7,3.26608]
[1720317901402,0.951,3061.8,3061.7,3.26608]
[1720317901715,2.37607871,3061.8,3061.7,3.26608]
[1720317901866,2.14764254,3061.8,3061.7,3.26608]
[1720317902067,3.50713516,3061.8,3061.7,3.26608]
[1720317903371,2.55613516,3061.8,3061.7,12.22968]
[1720317903682,1.13103326,3061.8,3061.7,12.22968]
[1720317903894,1.13103326,3061.8,3061.7,12.26115028]
[1720317905004,6.006,3062.2,3062.1,6.53146]
[1720317905184,8.56144193,3062.2,3062.1,6.53146]
[1720317905385,7.13672824,3062.2,3062.1,6.56278605]
[1720317905908,3.44793897,3062.6,3062.1,6.56278605]
[1720317905909,2.49693897,3062.6,3062.5,6.5306]
[1720317906076,4.99504332,3062.6,3062.5,6.5306]
[1720317906289,3.57055014,3062.6,3062.5,6.56184277]
[1720317906489,2.44,3062.6,3062.5,6.56184277]
[1720317906930,3.57052794,3062.6,3062.5,6.56184277]
[1720317907223,4.99503713,3062.6,3062.5,6.56184277]
[1720317907519,4.99503713,3062.6,3062.5,9.82714277]
[1720317907520,2.44,3062.6,3062.5,9.82714277]
[1720317907724,2.44,3062.6,3062.5,12.82714277]
[1720317911996,6.006,3063.0,3062.9,9.79461]
[1720317912213,6.006,3063.0,3062.9,9.82558005]
[1720317917416,6.006,3063.0,3062.9,12.21768005]
[1720317918471,6.006,3063.0,3062.9,9.82558005]
[1720317919992,6.006,3063.0,3062.9,6.56071005]
[1720317923311,6.957,3063.0,3062.9,6.56071005]
[1720317926082,6.006,3063.0,3062.9,6.56071005]
[1720317932104,6.006,3063.0,3062.9,6.62205021]
[1720317934295,7.13643269,3063.0,3062.9,6.62205021]
[1720317935318,7.13639226,3063.0,3062.9,6.62205021]
[1720317937091,8.08739226,3063.0,3062.9,6.62205021]
[1720317937307,6.006,3063.0,3062.9,6.62205021]
[1720317937489,8.08746334,3063.0,3062.9,6.62205021]
[1720317937686,6.957,3063.0,3062.9,6.62205021]
[1720317937881,8.08747998,3063.0,3062.9,6.62205021]
[1720317939601,8.08749399,3063.0,3062.9,6.62205021]
[1720317940286,8.08749399,3063.0,3062.9,3.35718021]
[1720317940616,6.957,3063.0,3062.9,3.35718021]
[1720317940930,8.08748804,3063.0,3062.9,3.35718021]
[1720317942290,8.08748804,3063.0,3062.9,9.13754174]
[1720317942291,1.13048804,3063.0,3062.9,9.13754174]
[1720317942499,7.48,3063.7,3063.2,3.26455]
[1720317942705,6.957,3063.9,3063.7,3.264]
[1720317943032,1.13022772,3063.8,3063.7,3.264]
[1720317943391,1.13022772,3063.8,3063.7,8.97852]
[1720317943696,6.34755347,3063.9,3063.8,6.52784]
[1720317943697,6.006,3063.9,3063.8,6.52784]
[1720317944698,6.006,3063.9,3063.8,9.79176]
[1720317945228,2.44,3064.3,3063.7,6.66545]
[1720317945435,6.006,3064.9,3064.8,6.5257]
[1720317945589,7.13578218,3064.9,3064.8,6.5257]
[1720317946337,6.006,3064.9,3064.8,6.5257]
[1720317949061,6.006,3064.9,3064.8,6.61723428]
[1720317949258,6.006,3064.9,3064.8,9.88008428]
[1720317950458,6.006,3064.9,3064.8,6.61723428]
[1720317952541,6.006,3064.9,3064.8,9.88008428]
[1720317953259,0.0607933,3065.2,3065.1,9.78759]
[1720317953788,0.0607933,3065.2,3065.1,9.87856694]
[1720317957299,0.0607933,3065.2,3065.1,6.61603694]
[1720317958446,0.0607933,3065.2,3065.1,9.87856694]
[1720317958644,0.0607933,3065.2,3065.1,12.87856694]
[1720317963093,0.0607933,3065.2,3065.1,16.14109694]
[1720317965923,0.05686882,3066.3,3066.2,9.78408]
[1720317966127,0.06560928,3067.3,3066.4,3.26107]
[1720317966447,0.06560928,3067.3,3067.1,3.2604]
[1720317966740,4.504,3067.2,3067.1,3.2604]
[1720317967831,5.452,3067.2,3067.1,3.2604]
[1720317968039,5.352,3067.2,3067.1,3.2604]
[1720317968338,5.17488093,3067.2,3067.1,3.2604]
[1720317968692,6.12288093,3067.2,3067.1,3.2604]
[1720317969434,5.17488093,3067.2,3067.1,3.2604]
[1720317969610,6.12288093,3067.2,3067.1,3.2604]
[1720317969803,5.17488093,3067.2,3067.1,3.2604]
[1720317973596,5.12488093,3067.2,3067.1,3.2604]
[1720317974705,6.31955197,3067.2,3066.7,3.26074]
[1720317974933,1.64154985,3067.1,3066.9,3.26061]
[1720317975149,0.06560928,3067.0,3066.9,3.26061]
[1720317976146,1.19476557,3067.0,3066.9,3.26061]
[1720317976307,2.2779,3066.9,3066.5,3.26097]
[1720317976642,0.06560928,3066.8,3066.5,3.26097]
[1720317977562,0.06560928,3066.8,3066.6,3.26093]
[1720317977760,0.30642347,3066.7,3066.5,3.26097]
[1720317978064,0.30642347,3066.7,3066.6,3.26094]
[1720317978923,0.30642347,3066.7,3066.6,0.0897845]
[1720317979133,1.43568737,3066.7,3066.6,0.0897845]
[1720317979348,1.43568737,3066.7,3066.5,3.26096]
[1720317979349,1.43568171,3066.7,3066.5,3.26096]
[1720317979665,0.30642347,3066.7,3066.6,0.08985648]
[1720317980249,1.43568304,3066.7,3066.6,0.08985648]
[1720317981516,1.43568304,3066.7,3066.6,3.35079648]
[1720317981764,0.30642347,3066.7,3066.6,3.35079648]
[1720317982117,1.43564333,3066.7,3066.6,3.35079648]
[1720317985054,0.30642347,3066.7,3066.6,3.35079648]
[1720317985757,1.43563903,3066.7,3066.6,3.35079648]
[1720317987115,1.43563903,3066.7,3066.6,0.08985648]
[1720317987318,1.43563903,3066.7,3066.6,3.35079648]
[1720317988150,1.43563903,3066.7,3066.6,6.61173648]
[1720317988480,1.12914399,3066.7,3066.6,6.61173648]
[1720317990718,0.29319331,3066.9,3066.8,3.26072]
[1720317990925,0.05685866,3066.9,3066.8,6.52144]
[1720317991119,0.05685866,3066.9,3066.8,6.61128694]
[1720317991120,1.18603617,3066.9,3066.8,6.61128694]
[1720317991626,1.18592536,3066.9,3066.8,6.61128694]
[1720317992167,4.354,3067.2,3067.1,6.5208]
[1720317992321,5.48294345,3067.2,3067.1,6.5208]
[1720317992523,5.48294345,3067.2,3067.1,6.61057865]
[1720317994731,4.354,3067.2,3067.1,6.61057865]
[1720317994932,5.48293093,3067.2,3067.1,6.61057865]
[1720317995232,5.48291989,3067.2,3067.1,6.61057865]
[1720317996498,5.48292173,3067.2,3067.1,6.61057865]
[1720317997944,4.354,3067.2,3067.1,6.61057865]
[1720317998270,5.48295093,3067.2,3067.1,6.61057865]
[1720317999768,4.354,3067.2,3067.1,6.61057865]
[1720317999968,5.48298612,3067.2,3067.1,6.61057865]
[1720318000172,6.03784566,3067.2,3067.1,3.35017865]
[1720318000670,6.03784566,3067.2,3067.1,0.08977865]
[1720318000971,6.03784566,3067.2,3067.1,3.35017865]
[1720318001476,4.90885954,3067.2,3067.1,3.35017865]
[1720318001670,6.03788737,3067.2,3067.1,3.35017865]
[1720318002079,7.46046551,3067.2,3067.1,3.35017865]
[1720318002289,7.46046791,3067.2,3067.1,3.35017865]
[1720318002994,7.46046791,3067.2,3067.1,0.08977865]
[1720318003290,7.801657,3067.2,3066.9,3.26055]
[1720318003468,3.39738335,3067.1,3066.9,3.26055]
[1720318003667,2.55160837,3067.0,3066.9,3.26055]
[1720318004493,2.5517056,3067.0,3066.9,3.26055]
[1720318004880,2.55185303,3067.0,3066.9,3.26055]
[1720318005397,2.55185306,3067.0,3066.9,3.26055]
[1720318006369,2.55178034,3067.0,3066.9,3.26055]
[1720318008052,0.06560928,3067.1,3067.0,3.26051]
[1720318008277,2.61735237,3067.1,3067.0,3.26051]
[1720318008952,2.61735237,3067.1,3067.0,3.35008424]
[1720318011208,4.18047446,3067.1,3067.0,3.35008424]
[1720318011513,4.18044504,3067.1,3067.0,3.35008424]
[1720318011794,5.12844504,3067.1,3067.0,3.35008424]
[1720318012096,3.56532559,3067.1,3067.0,3.35008424]
[1720318014689,1.01360928,3067.1,3067.0,3.35008424]
[1720318014893,3.56528375,3067.1,3067.0,3.35008424]
[1720318015201,3.56528759,3067.1,3067.0,3.35008424]
[1720318015996,5.12840344,3067.1,3067.0,3.35008424]
[1720318016163,6.11646602,3067.1,3067.0,3.35008424]
[1720318017704,6.11646602,3067.1,3067.0,0.08957424]
[1720318017909,2.00165358,3067.1,3067.0,0.08957424]
[1720318018113,2.00165358,3067.1,3066.9,3.26059]
[1720318018114,6.11656574,3067.1,3066.9,3.26059]
[1720318018276,3.49976533,3067.0,3066.9,3.26059]
[1720318019113,4.42462613,3067.0,3066.2,8.64074]
[1720318019416,0.948,3066.6,3066.5,3.26104]
[1720318019570,3.49976533,3066.6,3066.5,6.26104]
[1720318019767,3.49976533,3066.6,3066.5,3.26104]
[1720318020909,2.37075261,3066.6,3066.5,6.52208]
[1720318021077,3.49992096,3066.6,3066.5,6.52208]
[1720318021912,3.49992096,3066.6,3066.5,3.26104]
[1720318022113,3.84991306,3066.6,3066.5,3.26104]
[1720318023172,3.84991306,3066.6,3066.2,3.26132]
[1720318023401,6.97153024,3066.5,3066.3,3.26125]
[1720318023706,3.50030774,3066.4,3066.3,3.26125]
[1720318023914,3.56591702,3066.4,3066.3,3.26125]
[1720318024085,3.56595224,3066.4,3066.3,3.26125]
[1720318024669,2.61795224,3066.4,3066.3,3.26125]
[1720318024903,3.56595224,3066.4,3066.3,3.26125]
[1720318025117,3.56578002,3066.4,3066.3,3.26125]
[1720318026892,2.43652177,3066.4,3066.3,3.26125]
[1720318027203,3.56581755,3066.4,3066.3,3.26125]
[1720318027979,2.55220827,3066.4,3066.3,6.5225]
[1720318028896,2.55207633,3066.4,3066.3,6.5225]
[1720318029091,2.55208019,3066.4,3066.3,6.5225]
[1720318029374,2.55211831,3066.4,3066.3,6.5225]
[1720318029888,3.50011831,3066.4,3066.3,3.26125]
[1720318030092,3.22849278,3066.4,3066.3,3.26125]
[1720318030278,4.69905702,3066.4,3066.3,3.26125]
[1720318031180,4.69905702,3066.4,3066.1,3.26138]
[1720318031400,0.948,3066.2,3066.1,3.26138]
[1720318031602,3.56581803,3066.2,3066.1,3.26138]
[1720318033292,1.48920172,3066.2,3066.1,3.26138]
[1720318033520,3.56610216,3066.2,3065.9,6.52324]
[1720318033723,0.06560928,3066.2,3066.0,3.26156]
[1720318033929,3.50048566,3066.1,3066.0,3.26156]